[Event "Kvibergspelen September 2019"]
[Site "Prioritet Serneke Arena, Krutvagen 2, Gothenburg, Sweden"]
[Date "2019.09.27"]
[Round "4.6"]
[White "Le, Quang Long"]
[Black "Bruaset, Eivind"]
[Result "1-0"]
[TimeControl "15 minutes + 5 seconds per move from move one (Round 1 - 4) / 90 minutes + 30 seconds per move from move one (Round 5 - 8)"]
[WhiteTitle "IM"]
[WhiteFideId "12401749"]
[BlackFideId "1515276"]
[WhiteElo "2415"]
[BlackElo "2181"]

1. Nf3 {[%clk 00:15:02]} {[%emt 00:00:07]} e6 {[%clk 00:15:07]} {[%emt
00:00:04]} 2. g3 {[%clk 00:14:51]} {[%emt 00:00:15]} Nf6 {[%clk 00:14:57]}
{[%emt 00:00:15]} 3. c4 {[%clk 00:14:24]} {[%emt 00:00:31]} d5 {[%clk
00:14:48]} {[%emt 00:00:14]} 4. Bg2 {[%clk 00:14:26]} {[%emt 00:00:03]} Be7
{[%clk 00:14:33]} {[%emt 00:00:21]} 5. O-O {[%clk 00:13:42]} {[%emt 00:00:48]}
O-O {[%clk 00:14:35]} {[%emt 00:00:03]} 6. Qc2 {[%clk 00:13:46]} {[%emt
00:00:01]} b6 {[%clk 00:13:37]} {[%emt 00:01:04]} 7. cxd5 {[%clk 00:13:20]}
{[%emt 00:00:31]} Nxd5 {[%clk 00:13:12]} {[%emt 00:00:30]} 8. Nc3 {[%clk
00:12:45]} {[%emt 00:00:40]} Bb7 {[%clk 00:12:48]} {[%emt 00:00:29]} 9. d4
{[%clk 00:12:10]} {[%emt 00:00:39]} Nd7 {[%clk 00:12:32]} {[%emt 00:00:22]} 10.
Rd1 {[%clk 00:11:51]} {[%emt 00:00:23]} N7f6 {[%clk 00:11:54]} {[%emt
00:00:43]} 11. Bg5 {[%clk 00:10:04]} {[%emt 00:01:52]} h6 {[%clk 00:11:05]}
{[%emt 00:00:54]} 12. Bxf6 {[%clk 00:09:39]} {[%emt 00:00:30]} Bxf6 {[%clk
00:10:16]} {[%emt 00:00:54]} 13. Ne4 {[%clk 00:09:06]} {[%emt 00:00:38]} Rc8
{[%clk 00:09:51]} {[%emt 00:00:31]} 14. Rac1 {[%clk 00:08:49]} {[%emt
00:00:22]} Qe7 {[%clk 00:09:35]} {[%emt 00:00:21]} 15. Qa4 {[%clk 00:08:07]}
{[%emt 00:00:47]} c5 {[%clk 00:08:55]} {[%emt 00:00:45]} 16. dxc5 {[%clk
00:07:43]} {[%emt 00:00:29]} Bxb2 {[%clk 00:07:53]} {[%emt 00:01:07]} 17. Rc2
{[%clk 00:05:13]} {[%emt 00:02:34]} Bf6 {[%clk 00:07:22]} {[%emt 00:00:37]} 18.
Nxf6+ {[%clk 00:03:42]} {[%emt 00:01:36]} gxf6 {[%clk 00:05:42]} {[%emt
00:01:45]} 19. c6 {[%clk 00:02:51]} {[%emt 00:00:57]} Nb4 {[%clk 00:05:07]}
{[%emt 00:00:40]} 20. cxb7 {[%clk 00:02:28]} {[%emt 00:00:28]} Rxc2 {[%clk
00:05:10]} {[%emt 00:00:02]} 21. a3 {[%clk 00:02:21]} {[%emt 00:00:11]} Qxb7
{[%clk 00:03:18]} {[%emt 00:01:56]} 22. Qxb4 {[%clk 00:01:51]} {[%emt
00:00:36]} Qc7 {[%clk 00:03:03]} {[%emt 00:00:21]} 23. Qg4+ {[%clk 00:01:28]}
{[%emt 00:00:28]} Kh8 {[%clk 00:02:44]} {[%emt 00:00:24]} 24. Qd4 {[%clk
00:00:59]} {[%emt 00:00:33]} Kg7 {[%clk 00:02:39]} {[%emt 00:00:10]} 25. Bf1
{[%clk 00:00:47]} {[%emt 00:00:18]} Rc8 {[%clk 00:02:24]} {[%emt 00:00:20]} 26.
Qg4+ {[%clk 00:00:34]} {[%emt 00:00:17]} Kh8 {[%clk 00:02:26]} {[%emt
00:00:03]} 27. Qh5 {[%clk 00:00:38]} {[%emt 00:00:01]} Kg7 {[%clk 00:02:28]}
{[%emt 00:00:03]} 28. Rd4 {[%clk 00:00:37]} {[%emt 00:00:05]} f5 {[%clk
00:02:27]} {[%emt 00:00:06]} 29. e4 {[%clk 00:00:30]} {[%emt 00:00:12]} e5
{[%clk 00:01:16]} {[%emt 00:01:17]} 30. Rd5 {[%clk 00:00:33]} {[%emt 00:00:02]}
Rc5 {[%clk 00:01:20]} {[%emt 00:00:01]} 31. Qxf5 {[%clk 00:00:23]} {[%emt
00:00:14]} Rxd5 {[%clk 00:00:30]} {[%emt 00:00:55]} 32. exd5 {[%emt 00:00:01]}
f6 33. Bd3 {[%clk 00:00:25]} {[%emt 00:00:07]} Rh8 {[%clk 00:00:38]} {[%emt
00:00:01]} 34. Qg6+ {[%clk 00:00:27]} {[%emt 00:00:03]} Kf8 {[%clk 00:00:33]}
{[%emt 00:00:11]} 35. Qxf6+ {[%clk 00:00:30]} {[%emt 00:00:02]} Kg8 {[%clk
00:00:36]} 36. Bf5 {[%clk 00:00:29]} {[%emt 00:00:05]} Qg7 {[%clk 00:00:36]}
{[%emt 00:00:07]} 37. Qe6+ {[%clk 00:00:26]} {[%emt 00:00:07]} Kf8 {[%clk
00:00:39]} {[%emt 00:00:02]} 38. Nxe5 {[%clk 00:00:29]} {[%emt 00:00:02]} Qe7
{[%clk 00:00:30]} {[%emt 00:00:14]} 39. Ng6+ {[%emt 00:00:02]} 1-0

[Event "Kvibergspelen September 2019"]
[Site "Prioritet Serneke Arena, Krutvagen 2, Gothenburg, Sweden"]
[Date "2019.09.27"]
[Round "4.7"]
[White "Malmstig, Erik"]
[Black "Lindberg, Bengt"]
[Result "0-1"]
[TimeControl "15 minutes + 5 seconds per move from move one (Round 1 - 4) / 90 minutes + 30 seconds per move from move one (Round 5 - 8)"]
[WhiteTitle "FM"]
[BlackTitle "IM"]
[WhiteFideId "1702866"]
[BlackFideId "1700359"]
[WhiteElo "2257"]
[BlackElo "2397"]

1. d4 {[%clk 00:15:08]} {[%emt 00:00:01]} Nf6 {[%clk 00:15:08]} {[%emt
00:00:03]} 2. Bg5 {[%clk 00:15:09]} {[%emt 00:00:04]} e6 {[%clk 00:15:04]}
{[%emt 00:00:08]} 3. Nf3 {[%clk 00:15:02]} {[%emt 00:00:12]} h6 {[%clk
00:14:59]} {[%emt 00:00:09]} 4. Bh4 {[%clk 00:15:04]} {[%emt 00:00:03]} b6
{[%clk 00:14:42]} {[%emt 00:00:22]} 5. Nbd2 {[%clk 00:15:06]} {[%emt 00:00:04]}
Bb7 {[%clk 00:14:35]} {[%emt 00:00:12]} 6. e3 {[%clk 00:15:03]} {[%emt
00:00:08]} d6 {[%clk 00:14:12]} {[%emt 00:00:28]} 7. Bd3 {[%clk 00:15:02]}
{[%emt 00:00:07]} Nbd7 {[%clk 00:14:10]} {[%emt 00:00:07]} 8. e4 {[%clk
00:14:40]} {[%emt 00:00:27]} Be7 {[%clk 00:14:00]} {[%emt 00:00:14]} 9. Qe2
{[%clk 00:13:48]} {[%emt 00:00:58]} a6 {[%clk 00:13:38]} {[%emt 00:00:27]} 10.
O-O-O {[%clk 00:13:35]} {[%emt 00:00:18]} b5 {[%clk 00:13:06]} {[%emt
00:00:37]} 11. e5 {[%clk 00:12:59]} {[%emt 00:00:42]} Nd5 {[%clk 00:12:51]}
{[%emt 00:00:20]} 12. Bg3 {[%clk 00:12:44]} {[%emt 00:00:20]} Nb4 {[%clk
00:12:11]} {[%emt 00:00:44]} 13. exd6 {[%clk 00:12:23]} {[%emt 00:00:27]} cxd6
{[%clk 00:12:12]} {[%emt 00:00:03]} 14. Kb1 {[%clk 00:08:18]} {[%emt 00:04:10]}
Rc8 {[%clk 00:11:37]} {[%emt 00:00:40]} 15. Ne4 {[%clk 00:07:59]} {[%emt
00:00:24]} Nxd3 {[%clk 00:10:44]} {[%emt 00:00:58]} 16. Nxd6+ {[%clk 00:07:56]}
{[%emt 00:00:08]} Bxd6 {[%clk 00:10:47]} {[%emt 00:00:02]} 17. Bxd6 {[%clk
00:07:58]} {[%emt 00:00:03]} Nf6 {[%clk 00:10:24]} {[%emt 00:00:27]} 18. Ba3
{[%clk 00:07:12]} {[%emt 00:00:51]} Nf4 {[%clk 00:09:58]} {[%emt 00:00:30]} 19.
Qd2 {[%clk 00:06:45]} {[%emt 00:00:32]} N4d5 {[%clk 00:09:52]} {[%emt
00:00:11]} 20. Rhe1 {[%clk 00:06:35]} {[%emt 00:00:15]} a5 {[%clk 00:09:31]}
{[%emt 00:00:25]} 21. Bc5 {[%clk 00:06:28]} {[%emt 00:00:13]} Nd7 {[%clk
00:09:29]} {[%emt 00:00:06]} 22. Bd6 {[%clk 00:06:04]} {[%emt 00:00:30]} Qb6
{[%clk 00:08:56]} {[%emt 00:00:38]} 23. Bg3 {[%clk 00:04:28]} {[%emt 00:01:41]}
b4 {[%clk 00:08:33]} {[%emt 00:00:28]} 24. Ne5 {[%clk 00:03:59]} {[%emt
00:00:34]} Nc3+ {[%clk 00:07:54]} {[%emt 00:00:44]} 25. Ka1 {[%clk 00:03:49]}
{[%emt 00:00:16]} Nxe5 {[%clk 00:07:13]} {[%emt 00:00:45]} 26. Bxe5 {[%clk
00:03:48]} {[%emt 00:00:06]} f6 {[%clk 00:06:53]} {[%emt 00:00:24]} 27. d5
{[%clk 00:03:14]} {[%emt 00:00:40]} Nxd1 {[%clk 00:06:33]} {[%emt 00:00:25]} 28.
Bd4 {[%clk 00:02:57]} {[%emt 00:00:22]} Qc7 {[%clk 00:05:58]} {[%emt 00:00:40]}
29. Rxe6+ {[%clk 00:03:00]} {[%emt 00:00:03]} Kf7 {[%clk 00:06:01]} 30. Qe2
{[%clk 00:00:14]} {[%emt 00:02:51]} Bxd5 {[%clk 00:05:50]} {[%emt 00:00:17]} 31.
Ra6 {[%clk 00:00:15]} {[%emt 00:00:04]} Qxc2 {[%clk 00:02:00]} {[%emt
00:03:54]} 32. Ra7+ {[%clk 00:00:19]} {[%emt 00:00:01]} Kg8 {[%clk 00:02:01]}
{[%emt 00:00:03]} 33. Rxg7+ {[%clk 00:00:23]} {[%emt 00:00:02]} Kxg7 {[%clk
00:02:00]} {[%emt 00:00:05]} 34. Qe7+ {[%clk 00:00:27]} Kg8 {[%emt 00:00:15]}
0-1

[Event "Kvibergspelen September 2019"]
[Site "Prioritet Serneke Arena, Krutvagen 2, Gothenburg, Sweden"]
[Date "2019.09.27"]
[Round "4.8"]
[White "Pantzar, Milton"]
[Black "Johansson, Gunnar"]
[Result "1-0"]
[TimeControl "15 minutes + 5 seconds per move from move one (Round 1 - 4) / 90 minutes + 30 seconds per move from move one (Round 5 - 8)"]
[WhiteTitle "FM"]
[WhiteFideId "1721003"]
[BlackFideId "1703501"]
[WhiteElo "2376"]
[BlackElo "2183"]

1. d4 {[%clk 00:15:08]} {[%emt 00:00:01]} d5 {[%clk 00:15:09]} {[%emt
00:00:02]} 2. c4 {[%clk 00:15:11]} {[%emt 00:00:02]} c6 {[%clk 00:15:12]}
{[%emt 00:00:01]} 3. Nf3 {[%clk 00:15:10]} {[%emt 00:00:06]} Nf6 {[%clk
00:15:16]} {[%emt 00:00:02]} 4. Nbd2 {[%clk 00:15:13]} {[%emt 00:00:01]} Bf5
{[%clk 00:14:51]} {[%emt 00:00:29]} 5. Nh4 {[%clk 00:15:17]} {[%emt 00:00:02]}
Bc8 {[%clk 00:14:51]} {[%emt 00:00:06]} 6. e3 {[%clk 00:14:21]} {[%emt
00:01:01]} g6 {[%clk 00:14:50]} {[%emt 00:00:05]} 7. b3 {[%clk 00:14:21]}
{[%emt 00:00:05]} Bg7 {[%clk 00:14:51]} {[%emt 00:00:04]} 8. Bb2 {[%clk
00:14:25]} {[%emt 00:00:01]} O-O {[%clk 00:14:53]} {[%emt 00:00:03]} 9. Be2
{[%clk 00:14:08]} {[%emt 00:00:22]} Ne4 {[%clk 00:14:24]} {[%emt 00:00:33]} 10.
Nhf3 {[%clk 00:13:48]} {[%emt 00:00:25]} Bf5 {[%clk 00:13:54]} {[%emt
00:00:35]} 11. O-O {[%clk 00:13:47]} {[%emt 00:00:05]} Nd7 {[%clk 00:13:51]}
{[%emt 00:00:08]} 12. Nxe4 {[%clk 00:13:30]} {[%emt 00:00:21]} Bxe4 {[%clk
00:13:52]} {[%emt 00:00:05]} 13. Rc1 {[%clk 00:13:14]} {[%emt 00:00:21]} Rc8
{[%clk 00:12:58]} {[%emt 00:01:00]} 14. Ng5 {[%clk 00:12:18]} {[%emt 00:01:00]}
Nf6 {[%clk 00:12:17]} {[%emt 00:00:46]} 15. Nxe4 {[%clk 00:12:19]} {[%emt
00:00:05]} Nxe4 {[%clk 00:12:20]} {[%emt 00:00:02]} 16. Qd3 {[%clk 00:10:45]}
{[%emt 00:01:39]} Qd7 {[%clk 00:12:07]} {[%emt 00:00:18]} 17. Ba3 {[%clk
00:09:18]} {[%emt 00:01:32]} Rfd8 {[%clk 00:11:25]} {[%emt 00:00:46]} 18. cxd5
{[%clk 00:06:31]} {[%emt 00:02:52]} cxd5 {[%clk 00:11:26]} {[%emt 00:00:05]} 19.
Qb5 {[%clk 00:06:00]} {[%emt 00:00:36]} Qxb5 {[%clk 00:10:53]} {[%emt
00:00:37]} 20. Bxb5 {[%clk 00:06:04]} {[%emt 00:00:01]} Bf8 {[%clk 00:09:39]}
{[%emt 00:01:20]} 21. Bd3 {[%clk 00:05:32]} {[%emt 00:00:37]} e6 {[%clk
00:08:35]} {[%emt 00:01:09]} 22. Bb2 {[%clk 00:05:35]} {[%emt 00:00:02]} Bb4
{[%clk 00:08:03]} {[%emt 00:00:37]} 23. f3 {[%clk 00:04:45]} {[%emt 00:00:55]}
Nd6 {[%clk 00:06:41]} {[%emt 00:01:27]} 24. Kf2 {[%clk 00:04:44]} {[%emt
00:00:06]} Bd2 {[%clk 00:06:05]} {[%emt 00:00:40]} 25. Rxc8 {[%clk 00:04:39]}
{[%emt 00:00:10]} Rxc8 {[%clk 00:06:09]} {[%emt 00:00:02]} 26. Ke2 {[%clk
00:04:36]} {[%emt 00:00:07]} Bb4 {[%clk 00:06:10]} {[%emt 00:00:03]} 27. g4
{[%clk 00:04:23]} {[%emt 00:00:18]} h6 {[%clk 00:05:49]} {[%emt 00:00:26]} 28.
h4 {[%clk 00:04:21]} {[%emt 00:00:08]} a6 {[%clk 00:05:30]} {[%emt 00:00:24]}
29. h5 {[%clk 00:03:31]} {[%emt 00:00:55]} g5 {[%clk 00:05:09]} {[%emt
00:00:26]} 30. e4 {[%clk 00:03:16]} {[%emt 00:00:20]} Nb5 {[%clk 00:04:10]}
{[%emt 00:01:04]} 31. a4 {[%clk 00:01:19]} {[%emt 00:02:02]} Na7 {[%clk
00:03:06]} {[%emt 00:01:10]} 32. exd5 {[%clk 00:01:02]} {[%emt 00:00:22]} exd5
{[%clk 00:03:08]} {[%emt 00:00:03]} 33. Bf5 {[%clk 00:01:05]} {[%emt 00:00:02]}
Re8+ {[%clk 00:02:42]} {[%emt 00:00:31]} 34. Kd3 {[%clk 00:01:08]} {[%emt
00:00:01]} Bd6 {[%clk 00:02:16]} {[%emt 00:00:31]} 35. Bc1 {[%clk 00:00:40]}
{[%emt 00:00:34]} Nc6 {[%clk 00:02:14]} {[%emt 00:00:07]} 36. Bd2 {[%clk
00:00:40]} {[%emt 00:00:05]} Nb4+ {[%clk 00:01:56]} {[%emt 00:00:22]} 37. Bxb4
{[%clk 00:00:42]} {[%emt 00:00:03]} Bxb4 {[%clk 00:02:00]} {[%emt 00:00:01]} 38.
Rc1 {[%clk 00:00:46]} Kg7 {[%clk 00:01:26]} {[%emt 00:00:39]} 39. Rc7 {[%clk
00:00:34]} {[%emt 00:00:17]} b6 {[%clk 00:01:07]} {[%emt 00:00:25]} 40. Rd7
{[%clk 00:00:17]} {[%emt 00:00:21]} Re1 {[%clk 00:00:48]} {[%emt 00:00:24]} 41.
Rxd5 {[%clk 00:00:20]} {[%emt 00:00:02]} a5 {[%clk 00:00:40]} {[%emt 00:00:13]}
42. Rd7 {[%clk 00:00:22]} {[%emt 00:00:03]} Kf6 {[%clk 00:00:31]} {[%emt
00:00:14]} 43. Rb7 {[%clk 00:00:24]} {[%emt 00:00:04]} Rd1+ {[%clk 00:00:31]}
{[%emt 00:00:04]} 44. Ke3 {[%clk 00:00:23]} {[%emt 00:00:05]} Rc1 {[%clk
00:00:08]} {[%emt 00:00:29]} 45. Rxb6+ {[%clk 00:00:26]} {[%emt 00:00:01]} Kg7
{[%clk 00:00:12]} 46. Rb7 {[%clk 00:00:28]} {[%emt 00:00:04]} Rc3+ {[%clk
00:00:16]} {[%emt 00:00:02]} 47. Ke4 {[%clk 00:00:32]} {[%emt 00:00:01]} Rxb3
{[%clk 00:00:17]} {[%emt 00:00:03]} 48. Be6 {[%clk 00:00:31]} {[%emt 00:00:05]}
Ra3 {[%clk 00:00:18]} {[%emt 00:00:05]} 49. Rxf7+ {[%clk 00:00:34]} {[%emt
00:00:02]} Kh8 {[%clk 00:00:21]} {[%emt 00:00:02]} 50. d5 {[%clk 00:00:14]}
{[%emt 00:00:25]} Rxa4 {[%clk 00:00:23]} {[%emt 00:00:03]} 51. Kf5 {[%clk
00:00:18]} Bc3 {[%clk 00:00:11]} {[%emt 00:00:18]} 52. Kg6 {[%clk 00:00:22]}
1-0

[Event "Kvibergspelen September 2019"]
[Site "Prioritet Serneke Arena, Krutvagen 2, Gothenburg, Sweden"]
[Date "2019.09.27"]
[Round "4.9"]
[White "Kumar, Rahul"]
[Black "Akesson, Ralf"]
[Result "0-1"]
[TimeControl "15 minutes + 5 seconds per move from move one (Round 1 - 4) / 90 minutes + 30 seconds per move from move one (Round 5 - 8)"]
[BlackTitle "GM"]
[WhiteFideId "5010969"]
[BlackFideId "1700120"]
[WhiteElo "2158"]
[BlackElo "2367"]

1. e4 {[%clk 00:15:05]} {[%emt 00:00:04]} c6 {[%clk 00:15:01]} {[%emt
00:00:09]} 2. d4 {[%clk 00:15:07]} {[%emt 00:00:03]} d5 {[%clk 00:15:05]}
{[%emt 00:00:02]} 3. exd5 {[%clk 00:15:10]} {[%emt 00:00:02]} cxd5 {[%clk
00:15:08]} {[%emt 00:00:01]} 4. Bd3 {[%clk 00:15:11]} {[%emt 00:00:04]} Nc6
{[%clk 00:15:11]} {[%emt 00:00:02]} 5. c3 {[%clk 00:15:13]} {[%emt 00:00:02]}
Nf6 {[%clk 00:15:14]} {[%emt 00:00:02]} 6. Bf4 {[%clk 00:15:04]} {[%emt
00:00:14]} Bg4 {[%clk 00:15:16]} {[%emt 00:00:03]} 7. Nf3 {[%clk 00:15:07]}
{[%emt 00:00:02]} Qb6 {[%clk 00:14:41]} {[%emt 00:00:40]} 8. b4 {[%clk
00:14:11]} {[%emt 00:01:01]} e6 {[%clk 00:14:07]} {[%emt 00:00:40]} 9. O-O
{[%clk 00:14:13]} {[%emt 00:00:03]} Be7 {[%clk 00:14:09]} {[%emt 00:00:03]} 10.
a4 {[%clk 00:14:06]} {[%emt 00:00:12]} a6 {[%clk 00:13:14]} {[%emt 00:01:00]}
11. Nbd2 {[%clk 00:13:59]} {[%emt 00:00:11]} O-O {[%clk 00:13:13]} {[%emt
00:00:07]} 12. Qb1 {[%clk 00:13:45]} {[%emt 00:00:19]} Bh5 {[%clk 00:12:52]}
{[%emt 00:00:26]} 13. Ne5 {[%clk 00:13:28]} {[%emt 00:00:22]} Bg6 {[%clk
00:12:41]} {[%emt 00:00:14]} 14. Nxg6 {[%clk 00:13:25]} {[%emt 00:00:10]} hxg6
{[%clk 00:12:44]} {[%emt 00:00:01]} 15. Nf3 {[%clk 00:13:18]} {[%emt 00:00:12]}
Rac8 {[%clk 00:12:24]} {[%emt 00:00:25]} 16. Re1 {[%clk 00:12:32]} {[%emt
00:00:50]} Qd8 {[%clk 00:12:13]} {[%emt 00:00:17]} 17. a5 {[%clk 00:12:10]}
{[%emt 00:00:28]} Bd6 {[%clk 00:10:52]} {[%emt 00:01:26]} 18. Bd2 {[%clk
00:11:56]} {[%emt 00:00:18]} Nd7 {[%clk 00:10:25]} {[%emt 00:00:33]} 19. Qa2
{[%clk 00:10:21]} {[%emt 00:01:40]} Qc7 {[%clk 00:10:05]} {[%emt 00:00:25]} 20.
g3 {[%clk 00:09:38]} {[%emt 00:00:48]} Rfe8 {[%clk 00:10:02]} {[%emt 00:00:08]}
21. Kg2 {[%clk 00:09:39]} {[%emt 00:00:03]} Rcd8 {[%clk 00:09:29]} {[%emt
00:00:39]} 22. Re2 {[%clk 00:09:06]} {[%emt 00:00:38]} Ne7 {[%clk 00:08:43]}
{[%emt 00:00:51]} 23. Rae1 {[%clk 00:09:09]} {[%emt 00:00:02]} Nf5 {[%clk
00:08:36]} {[%emt 00:00:12]} 24. Qb3 {[%clk 00:08:06]} {[%emt 00:01:08]} Rc8
{[%clk 00:08:27]} {[%emt 00:00:14]} 25. h4 {[%clk 00:07:48]} {[%emt 00:00:22]}
Nf6 {[%clk 00:07:44]} {[%emt 00:00:48]} 26. Ne5 {[%clk 00:07:40]} {[%emt
00:00:12]} Nd7 {[%clk 00:06:48]} {[%emt 00:01:01]} 27. f4 {[%clk 00:07:12]}
{[%emt 00:00:33]} Bf8 {[%clk 00:06:37]} {[%emt 00:00:16]} 28. Rh1 {[%clk
00:07:02]} {[%emt 00:00:15]} Nf6 {[%clk 00:06:39]} {[%emt 00:00:03]} 29. g4
{[%clk 00:06:55]} {[%emt 00:00:11]} Nd6 {[%clk 00:06:43]} {[%emt 00:00:02]} 30.
h5 {[%clk 00:06:45]} {[%emt 00:00:15]} gxh5 {[%clk 00:06:35]} {[%emt 00:00:13]}
31. gxh5 {[%clk 00:06:17]} {[%emt 00:00:33]} Nde4 {[%clk 00:06:37]} {[%emt
00:00:04]} 32. Bxe4 {[%clk 00:05:56]} {[%emt 00:00:26]} Nxe4 {[%clk 00:06:35]}
{[%emt 00:00:07]} 33. Rh3 {[%clk 00:05:58]} {[%emt 00:00:01]} Qd8 {[%clk
00:06:06]} {[%emt 00:00:35]} 34. Qc2 {[%clk 00:05:41]} {[%emt 00:00:23]} Qf6
{[%clk 00:05:54]} {[%emt 00:00:16]} 35. Ng4 {[%clk 00:05:24]} {[%emt 00:00:22]}
Qf5 {[%clk 00:05:52]} {[%emt 00:00:07]} 36. Nf2 {[%clk 00:04:32]} {[%emt
00:00:57]} Ng3 {[%clk 00:05:27]} {[%emt 00:00:30]} 37. Qxf5 {[%clk 00:04:29]}
{[%emt 00:00:08]} Nxf5 {[%clk 00:05:30]} {[%emt 00:00:02]} 38. Ng4 {[%clk
00:04:07]} {[%emt 00:00:27]} Kh7 {[%clk 00:05:17]} {[%emt 00:00:18]} 39. Ne3
{[%clk 00:04:04]} {[%emt 00:00:08]} Nd6 {[%clk 00:05:11]} {[%emt 00:00:11]} 40.
Ng4 {[%clk 00:03:48]} {[%emt 00:00:20]} Ne4 {[%clk 00:04:58]} {[%emt 00:00:18]}
41. h6 {[%clk 00:03:53]} {[%emt 00:00:01]} g6 {[%clk 00:04:11]} {[%emt
00:00:52]} 42. Rxe4 {[%clk 00:03:33]} {[%emt 00:00:25]} dxe4 {[%clk 00:04:15]}
{[%emt 00:00:02]} 43. Nf6+ {[%clk 00:03:36]} Kh8 {[%clk 00:04:19]} {[%emt
00:00:01]} 44. Nxe4 {[%clk 00:03:39]} {[%emt 00:00:03]} Be7 {[%clk 00:04:11]}
{[%emt 00:00:12]} 45. Kf2 {[%clk 00:03:29]} {[%emt 00:00:14]} Red8 {[%clk
00:04:00]} {[%emt 00:00:17]} 46. Ke2 {[%clk 00:03:31]} {[%emt 00:00:04]} Rd5
{[%clk 00:03:59]} {[%emt 00:00:05]} 47. Ng3 {[%clk 00:03:28]} {[%emt 00:00:08]}
Kh7 {[%clk 00:03:51]} {[%emt 00:00:13]} 48. Kd3 {[%clk 00:03:29]} {[%emt
00:00:04]} Rd7 {[%clk 00:03:54]} {[%emt 00:00:03]} 49. Ne4 {[%clk 00:03:24]}
{[%emt 00:00:09]} f6 {[%clk 00:03:29]} {[%emt 00:00:29]} 50. Be1 {[%clk
00:03:27]} {[%emt 00:00:02]} f5 {[%clk 00:03:12]} {[%emt 00:00:23]} 51. Nd2
{[%clk 00:03:03]} {[%emt 00:00:29]} Bf8 {[%clk 00:03:00]} {[%emt 00:00:17]} 52.
Nf3 {[%clk 00:02:57]} {[%emt 00:00:11]} Be7 {[%clk 00:02:49]} {[%emt 00:00:16]}
53. Ne5 {[%clk 00:02:40]} {[%emt 00:00:22]} Rdc7 {[%clk 00:02:46]} {[%emt
00:00:08]} 54. Rg3 {[%clk 00:02:44]} {[%emt 00:00:02]} Bh4 {[%clk 00:02:40]}
{[%emt 00:00:12]} 55. c4 {[%clk 00:01:52]} {[%emt 00:00:57]} Bxg3 {[%clk
00:02:40]} {[%emt 00:00:04]} 56. Bxg3 {[%clk 00:01:56]} {[%emt 00:00:01]} Kxh6
{[%clk 00:02:42]} {[%emt 00:00:03]} 57. Bh4 {[%clk 00:01:58]} {[%emt 00:00:03]}
Kg7 {[%clk 00:02:38]} {[%emt 00:00:09]} 58. c5 {[%clk 00:01:52]} {[%emt
00:00:11]} Rh8 {[%clk 00:02:39]} {[%emt 00:00:04]} 59. Bg5 {[%clk 00:01:56]}
{[%emt 00:00:01]} Rh1 {[%clk 00:02:31]} {[%emt 00:00:13]} 60. Kc4 {[%clk
00:01:50]} {[%emt 00:00:11]} Rc1+ {[%clk 00:02:33]} {[%emt 00:00:02]} 61. Kd3
{[%clk 00:01:53]} {[%emt 00:00:02]} Rc8 {[%clk 00:02:36]} {[%emt 00:00:03]} 62.
Nc4 {[%clk 00:01:47]} {[%emt 00:00:11]} Rh8 {[%clk 00:02:30]} {[%emt 00:00:11]}
63. Nd6 {[%clk 00:01:51]} {[%emt 00:00:01]} Rh3+ {[%clk 00:02:27]} {[%emt
00:00:08]} 64. Kd2 {[%clk 00:01:51]} {[%emt 00:00:06]} Ra1 {[%clk 00:02:29]}
{[%emt 00:00:02]} 65. Nxb7 {[%clk 00:01:36]} {[%emt 00:00:20]} Ra2+ {[%clk
00:02:32]} {[%emt 00:00:02]} 66. Ke1 {[%clk 00:01:39]} {[%emt 00:00:01]} Rh1#
{[%emt 00:00:02]} 0-1